[Event "Late-Titled-Tuesday-Blitz-September-12-2023"]
[Site "Chess.com"]
[Date "2023.09.12"]
[Round "3"]
[White "WaybackBoy"]
[Black "vi_pranav"]
[Result "1-0"]
[WhiteElo "2718"]
[BlackElo "2985"]
[TimeControl "180+1"]
[EndTime "14:29:17 PDT"]
[Termination "WaybackBoy won by resignation"]

1. d4 {[%clk 0:03:00.9]} 1... Nf6 {[%clk 0:02:59.6]} 2. c4 {[%clk 0:03:00.4]}
2... e6 {[%clk 0:02:59.6]} 3. Nf3 {[%clk 0:03:00.6]} 3... Bb4+ {[%clk 0:02:59]}
4. Bd2 {[%clk 0:02:59.6]} 4... a5 {[%clk 0:02:59.4]} 5. e3 {[%clk 0:02:55.2]}
5... O-O {[%clk 0:02:58.6]} 6. Bd3 {[%clk 0:02:53.8]} 6... b6 {[%clk 0:02:58.7]}
7. O-O {[%clk 0:02:53.3]} 7... Bb7 {[%clk 0:02:58.4]} 8. a3 {[%clk 0:02:52.3]}
8... Bxd2 {[%clk 0:02:54.8]} 9. Nbxd2 {[%clk 0:02:53.2]} 9... d6 {[%clk
0:02:55.1]} 10. b4 {[%clk 0:02:52.4]} 10... Nbd7 {[%clk 0:02:55.2]} 11. e4
{[%clk 0:02:49.6]} 11... e5 {[%clk 0:02:53.4]} 12. Qc2 {[%clk 0:02:39.2]} 12...
Qe7 {[%clk 0:02:49.9]} 13. Rfe1 {[%clk 0:02:39]} 13... Nh5 {[%clk 0:02:47.5]}
14. g3 {[%clk 0:02:37.7]} 14... g6 {[%clk 0:02:44.8]} 15. Rab1 {[%clk
0:02:34.2]} 15... axb4 {[%clk 0:02:43.9]} 16. axb4 {[%clk 0:02:35.1]} 16... Ra7
{[%clk 0:02:28.4]} 17. c5 {[%clk 0:02:26.3]} 17... bxc5 {[%clk 0:02:27.1]} 18.
bxc5 {[%clk 0:02:22.4]} 18... dxc5 {[%clk 0:02:21.3]} 19. dxe5 {[%clk
0:02:10.5]} 19... Nxe5 {[%clk 0:02:18.9]} 20. Nxe5 {[%clk 0:02:11.1]} 20... Qxe5
{[%clk 0:02:19.5]} 21. Nb3 {[%clk 0:02:11.9]} 21... Nf6 {[%clk 0:01:53.4]} 22.
Qxc5 {[%clk 0:02:09]} 22... Qxc5 {[%clk 0:01:52.7]} 23. Nxc5 {[%clk 0:02:09.2]}
23... Bc6 {[%clk 0:01:53.1]} 24. e5 {[%clk 0:02:03.3]} 24... Nd5 {[%clk
0:01:47]} 25. e6 {[%clk 0:02:02.4]} 25... fxe6 {[%clk 0:01:44.4]} 26. Nxe6
{[%clk 0:01:59.9]} 26... Re8 {[%clk 0:01:32.2]} 27. Bc4 {[%clk 0:01:40.3]} 27...
Kh8 {[%clk 0:01:31.2]} 28. Nd4 {[%clk 0:01:24.7]} 28... Rxe1+ {[%clk 0:01:19]}
29. Rxe1 {[%clk 0:01:24.5]} 29... Ra4 {[%clk 0:01:17.7]} 30. Rc1 {[%clk
0:01:00.2]} 30... Nb6 {[%clk 0:00:52.8]} 31. Bb3 {[%clk 0:00:51.4]} 31... Rxd4
{[%clk 0:00:47.8]} 32. Rxc6 {[%clk 0:00:52]} 32... Rd7 {[%clk 0:00:48.4]} 33. h4
{[%clk 0:00:52.3]} 33... Kg7 {[%clk 0:00:47.7]} 34. Kg2 {[%clk 0:00:52.4]} 34...
Re7 {[%clk 0:00:46.9]} 35. g4 {[%clk 0:00:48.2]} 35... Nc8 {[%clk 0:00:46.5]}
36. g5 {[%clk 0:00:42.5]} 36... Nd6 {[%clk 0:00:45.8]} 37. Ra6 {[%clk
0:00:41.3]} 37... h6 {[%clk 0:00:30.7]} 38. Bc2 {[%clk 0:00:30.7]} 38... hxg5
{[%clk 0:00:29.4]} 39. hxg5 {[%clk 0:00:31.6]} 39... Re5 {[%clk 0:00:29.9]} 40.
Rc6 {[%clk 0:00:22.2]} 40... Rxg5+ {[%clk 0:00:28.8]} 41. Kf3 {[%clk 0:00:19.9]}
41... Ne8 {[%clk 0:00:29]} 42. Kf4 {[%clk 0:00:20.2]} 42... Rg2 {[%clk
0:00:27.8]} 43. Kf3 {[%clk 0:00:19.6]} 43... Rg1 {[%clk 0:00:28]} 44. Be4 {[%clk
0:00:19.6]} 44... Rg5 {[%clk 0:00:14.8]} 45. Kf4 {[%clk 0:00:19.2]} 45... Rg1
{[%clk 0:00:12.3]} 46. Kf3 {[%clk 0:00:19.5]} 46... Kf7 {[%clk 0:00:09.3]} 47.
Kf4 {[%clk 0:00:18.5]} 47... g5+ {[%clk 0:00:07.1]} 48. Ke5 {[%clk 0:00:17]}
48... Re1 {[%clk 0:00:05.1]} 49. f3 {[%clk 0:00:13]} 49... Ke7 {[%clk
0:00:02.3]} 50. Rg6 {[%clk 0:00:08.7]} 50... c5 {[%clk 0:00:01.5]} 51. Rxg5
{[%clk 0:00:07.5]} 51... c4 {[%clk 0:00:02]} 52. Kd4 {[%clk 0:00:07.8]} 52...
Rd1+ {[%clk 0:00:02.5]} 53. Kxc4 {[%clk 0:00:06.3]} 53... Nd6+ {[%clk
0:00:03.2]} 54. Kc3 {[%clk 0:00:06.4]} 54... Rc1+ {[%clk 0:00:03.6]} 55. Kd3
{[%clk 0:00:06.2]} 55... Ra1 {[%clk 0:00:04]} 56. Re5+ {[%clk 0:00:05.1]} 56...
Kf6 {[%clk 0:00:04]} 57. Rd5 {[%clk 0:00:05.7]} 57... Ke6 {[%clk 0:00:04.6]} 58.
Rh5 {[%clk 0:00:05]} 58... Ra3+ {[%clk 0:00:04.9]} 59. Kd4 {[%clk 0:00:05.4]}
59... Ra4+ {[%clk 0:00:05.1]} 60. Ke3 {[%clk 0:00:05.5]} 60... Kf6 {[%clk
0:00:04.1]} 61. Kf4 {[%clk 0:00:05.4]} 61... Nf7 {[%clk 0:00:04.3]} 62. Rf5+
{[%clk 0:00:05.1]} 62... Ke7 {[%clk 0:00:04.8]} 63. Rb5 {[%clk 0:00:05.6]} 63...
Nd6 {[%clk 0:00:04.6]} 64. Rb6 {[%clk 0:00:05.5]} 64... Ra5 {[%clk 0:00:04.5]}
65. Rc6 {[%clk 0:00:05.4]} 65... Ra4 {[%clk 0:00:02.4]} 66. Rc7+ {[%clk
0:00:05.6]} 66... Ke6 {[%clk 0:00:02.5]} 67. Rc1 {[%clk 0:00:06.5]} 67... Nxe4
{[%clk 0:00:02.4]} 68. fxe4 {[%clk 0:00:07.4]} 68... Ra6 {[%clk 0:00:02.9]} 69.
Rh1 {[%clk 0:00:07.8]} 69... Ra3 {[%clk 0:00:02.1]} 70. Rh6+ {[%clk 0:00:08.3]}
70... Ke7 {[%clk 0:00:02.8]} 71. Kf5 {[%clk 0:00:08.8]} 71... Ra5+ {[%clk
0:00:03.3]} 72. e5 {[%clk 0:00:09.3]} 72... Ra1 {[%clk 0:00:02]} 73. Rh7+ {[%clk
0:00:09.9]} 73... Ke8 {[%clk 0:00:02.5]} 74. Kf6 {[%clk 0:00:09.6]} 74... Rf1+
{[%clk 0:00:02.9]} 75. Ke6 {[%clk 0:00:10]} 75... Kf8 {[%clk 0:00:02.1]} 76.
Rh8+ {[%clk 0:00:08]} 76... Kg7 {[%clk 0:00:02.6]} 77. Rh2 {[%clk 0:00:08.7]}
77... Ra1 {[%clk 0:00:02.7]} 78. Rg2+ {[%clk 0:00:08.3]} 78... Kf8 {[%clk
0:00:02.9]} 79. Rd2 {[%clk 0:00:07.7]} 79... Ra6+ {[%clk 0:00:02.7]} 80. Rd6
{[%clk 0:00:08.3]} 80... Ra8 {[%clk 0:00:02.8]} 81. Kf6 {[%clk 0:00:08.4]} 81...
Ke8 {[%clk 0:00:02.1]} 82. Rb6 {[%clk 0:00:08.2]} 82... Rd8 {[%clk 0:00:01.3]}
83. e6 {[%clk 0:00:07.8]} 83... Rc8 {[%clk 0:00:01.8]} 84. Ra6 {[%clk
0:00:07.8]} 84... Rb8 {[%clk 0:00:02.1]} 85. Ra2 {[%clk 0:00:07.9]} 85... Rc8
{[%clk 0:00:01.7]} 86. Rh2 {[%clk 0:00:08]} 86... Kd8 {[%clk 0:00:01.8]} 87.
Rh8+ {[%clk 0:00:08.3]} 87... Kc7 {[%clk 0:00:02.7]} 88. Rxc8+ {[%clk
0:00:09.2]} 1-0

[Event "Late-Titled-Tuesday-Blitz-September-12-2023"]
[Site "Chess.com"]
[Date "2023.09.12"]
[Round "4"]
[White "Atanejhad"]
[Black "aNaartjieZA"]
[Result "1-0"]
[WhiteElo "2483"]
[BlackElo "2565"]
[TimeControl "180+1"]
[EndTime "14:31:26 PDT"]
[Termination "Atanejhad won by resignation"]

1. d4 {[%clk 0:03:00.9]} 1... Nf6 {[%clk 0:02:59]} 2. c4 {[%clk 0:03:00.1]} 2...
c5 {[%clk 0:02:59.3]} 3. d5 {[%clk 0:02:58.6]} 3... e5 {[%clk 0:02:59.6]} 4. Nc3
{[%clk 0:02:57.7]} 4... d6 {[%clk 0:02:59.9]} 5. e4 {[%clk 0:02:58.2]} 5... Nbd7
{[%clk 0:03:00.1]} 6. Nf3 {[%clk 0:02:54.5]} 6... Be7 {[%clk 0:03:00.3]} 7. Be2
{[%clk 0:02:53.9]} 7... Nf8 {[%clk 0:03:00.6]} 8. O-O {[%clk 0:02:54.5]} 8...
Ng6 {[%clk 0:03:00.2]} 9. Ne1 {[%clk 0:02:54.8]} 9... h5 {[%clk 0:02:59.8]} 10.
Nd3 {[%clk 0:02:51.3]} 10... h4 {[%clk 0:02:59.5]} 11. b4 {[%clk 0:02:40.9]}
11... b6 {[%clk 0:02:57]} 12. a4 {[%clk 0:02:39.6]} 12... Nh7 {[%clk 0:02:53.9]}
13. a5 {[%clk 0:02:38.6]} 13... cxb4 {[%clk 0:02:53.7]} 14. Nxb4 {[%clk
0:02:36.9]} 14... Bd7 {[%clk 0:02:50.8]} 15. Nc6 {[%clk 0:02:34.6]} 15... Qc7
{[%clk 0:02:50.2]} 16. axb6 {[%clk 0:02:33.5]} 16... Qxb6 {[%clk 0:02:50.5]} 17.
Be3 {[%clk 0:02:27.6]} 17... Qc7 {[%clk 0:02:50.4]} 18. Nb5 {[%clk 0:02:27.2]}
1-0

[Event "Late-Titled-Tuesday-Blitz-September-12-2023"]
[Site "Chess.com"]
[Date "2023.09.12"]
[Round "4"]
[White "Rud_Makarian"]
[Black "YEIKO2017"]
[Result "1-0"]
[WhiteElo "2949"]
[BlackElo "2548"]
[TimeControl "180+1"]
[EndTime "14:32:55 PDT"]
[Termination "Rud_Makarian won by resignation"]

1. d4 {[%clk 0:03:00.9]} 1... Nf6 {[%clk 0:02:57.1]} 2. c4 {[%clk 0:03:01.4]}
2... e5 {[%clk 0:02:56]} 3. dxe5 {[%clk 0:03:01.2]} 3... Ng4 {[%clk 0:02:53.8]}
4. e4 {[%clk 0:03:01.8]} 4... Nxe5 {[%clk 0:02:52.5]} 5. f4 {[%clk 0:03:02.1]}
5... Nec6 {[%clk 0:02:53]} 6. Nc3 {[%clk 0:03:01.8]} 6... Bc5 {[%clk 0:02:52.8]}
7. Nf3 {[%clk 0:03:01.3]} 7... d6 {[%clk 0:02:52.2]} 8. Na4 {[%clk 0:03:01.2]}
8... Bb4+ {[%clk 0:02:51.3]} 9. Kf2 {[%clk 0:03:01.8]} 9... Nd7 {[%clk
0:02:40.3]} 10. a3 {[%clk 0:03:01.4]} 10... Bc5+ {[%clk 0:02:40.5]} 11. Nxc5
{[%clk 0:02:58.6]} 11... Nxc5 {[%clk 0:02:39.8]} 12. Bd3 {[%clk 0:02:58.5]}
12... O-O {[%clk 0:02:37.9]} 13. b4 {[%clk 0:02:57.7]} 13... Nxd3+ {[%clk
0:02:38.5]} 14. Qxd3 {[%clk 0:02:58.6]} 14... f5 {[%clk 0:02:38.6]} 15. Bb2
{[%clk 0:02:57.2]} 15... fxe4 {[%clk 0:02:36.5]} 16. Qxe4 {[%clk 0:02:57.8]}
16... Bf5 {[%clk 0:02:36.6]} 17. Qd5+ {[%clk 0:02:58]} 17... Kh8 {[%clk
0:02:37.1]} 18. Rae1 {[%clk 0:02:58]} 18... Qd7 {[%clk 0:02:29.6]} 19. h3 {[%clk
0:02:55.5]} 19... Rae8 {[%clk 0:02:24.6]} 20. Rxe8 {[%clk 0:02:53.9]} 20... Rxe8
{[%clk 0:02:23.9]} 21. Re1 {[%clk 0:02:36.1]} 21... Rxe1 {[%clk 0:02:21.5]} 22.
Nxe1 {[%clk 0:02:36.7]} 22... Qe6 {[%clk 0:02:15]} 23. g4 {[%clk 0:02:25.3]}
23... Qe4 {[%clk 0:01:44.2]} 24. Qxf5 {[%clk 0:02:16.9]} 1-0

[Event "Late-Titled-Tuesday-Blitz-September-12-2023"]
[Site "Chess.com"]
[Date "2023.09.12"]
[Round "4"]
[White "GMForgacs"]
[Black "drdaro"]
[Result "0-1"]
[WhiteElo "2443"]
[BlackElo "2276"]
[TimeControl "180+1"]
[EndTime "14:33:09 PDT"]
[Termination "drdaro won by resignation"]

1. e4 {[%clk 0:03:00.9]} 1... c5 {[%clk 0:02:58.9]} 2. Nf3 {[%clk 0:02:59.9]}
2... e6 {[%clk 0:02:58.8]} 3. d4 {[%clk 0:03:00.6]} 3... cxd4 {[%clk 0:02:59.7]}
4. Nxd4 {[%clk 0:03:01.5]} 4... Nc6 {[%clk 0:02:58.5]} 5. Nc3 {[%clk 0:03:01.7]}
5... Nf6 {[%clk 0:02:53.6]} 6. Nxc6 {[%clk 0:03:00.6]} 6... bxc6 {[%clk
0:02:52.7]} 7. e5 {[%clk 0:03:01.1]} 7... Nd5 {[%clk 0:02:52.4]} 8. Ne4 {[%clk
0:03:01.8]} 8... Bb7 {[%clk 0:02:50.5]} 9. c4 {[%clk 0:02:59.3]} 9... Nb4 {[%clk
0:02:35.1]} 10. a3 {[%clk 0:02:40.3]} 10... Qa5 {[%clk 0:02:21.3]} 11. Bd2
{[%clk 0:02:31.7]} 11... Qxe5 {[%clk 0:02:21.2]} 12. axb4 {[%clk 0:02:29.6]}
12... Qxe4+ {[%clk 0:02:21.1]} 13. Qe2 {[%clk 0:02:27.5]} 13... Qxe2+ {[%clk
0:02:20.1]} 14. Bxe2 {[%clk 0:02:28.4]} 14... c5 {[%clk 0:02:10.8]} 15. bxc5
{[%clk 0:02:25.6]} 15... Bxc5 {[%clk 0:02:01.4]} 16. b4 {[%clk 0:02:23.6]} 16...
Bd4 {[%clk 0:02:01.2]} 17. Ra5 {[%clk 0:02:12.1]} 17... Bxg2 {[%clk 0:01:54.6]}
18. Rg1 {[%clk 0:02:12.4]} 18... Be4 {[%clk 0:01:46.8]} 19. f3 {[%clk
0:01:58.5]} 19... Bxg1 {[%clk 0:01:43.2]} 0-1

[Event "Late-Titled-Tuesday-Blitz-September-12-2023"]
[Site "Chess.com"]
[Date "2023.09.12"]
[Round "4"]
[White "kingofthenil"]
[Black "kleopl"]
[Result "1-0"]
[WhiteElo "2790"]
[BlackElo "2539"]
[TimeControl "180+1"]
[EndTime "14:33:45 PDT"]
[Termination "kingofthenil won by resignation"]

1. e4 {[%clk 0:02:48.7]} 1... c5 {[%clk 0:02:59.9]} 2. Nf3 {[%clk 0:02:49]} 2...
d6 {[%clk 0:03:00.2]} 3. d4 {[%clk 0:02:49.9]} 3... cxd4 {[%clk 0:03:00.5]} 4.
Nxd4 {[%clk 0:02:50.8]} 4... Nf6 {[%clk 0:03:00.6]} 5. Nc3 {[%clk 0:02:50.8]}
5... a6 {[%clk 0:03:01]} 6. g3 {[%clk 0:02:51.6]} 6... e5 {[%clk 0:03:00.5]} 7.
Nde2 {[%clk 0:02:52.3]} 7... Be7 {[%clk 0:03:00.7]} 8. Bg2 {[%clk 0:02:52.7]}
8... O-O {[%clk 0:02:59.9]} 9. h3 {[%clk 0:02:52.2]} 9... Nbd7 {[%clk
0:02:55.3]} 10. a4 {[%clk 0:02:49.6]} 10... b6 {[%clk 0:02:52.4]} 11. O-O {[%clk
0:02:49.5]} 11... Bb7 {[%clk 0:02:52.1]} 12. g4 {[%clk 0:02:49.8]} 12... Rc8
{[%clk 0:02:47.4]} 13. Ng3 {[%clk 0:02:47.2]} 13... g6 {[%clk 0:02:37.3]} 14. g5
{[%clk 0:02:37.5]} 14... Ne8 {[%clk 0:02:36.9]} 15. h4 {[%clk 0:02:37.2]} 15...
Ng7 {[%clk 0:02:34.2]} 16. f4 {[%clk 0:02:34.1]} 16... exf4 {[%clk 0:02:32.7]}
17. Bxf4 {[%clk 0:02:35]} 17... Ne5 {[%clk 0:02:28.4]} 18. Nd5 {[%clk
0:02:35.5]} 18... Bxd5 {[%clk 0:02:26.5]} 19. exd5 {[%clk 0:02:35.9]} 19... Rc4
{[%clk 0:02:02.4]} 20. b3 {[%clk 0:02:33.9]} 20... Rc3 {[%clk 0:02:02]} 21. Ne4
{[%clk 0:02:31.2]} 21... Rc7 {[%clk 0:01:56.8]} 22. Bxe5 {[%clk 0:02:29.8]}
22... dxe5 {[%clk 0:01:52.2]} 23. d6 {[%clk 0:02:30.7]} 23... Bxd6 {[%clk
0:01:46.2]} 24. Qxd6 {[%clk 0:02:28.9]} 24... Rxc2 {[%clk 0:01:45.5]} 25. Qxd8
{[%clk 0:02:21.6]} 25... Rxd8 {[%clk 0:01:45.2]} 26. Rad1 {[%clk 0:02:22.1]}
26... Rxd1 {[%clk 0:01:37]} 27. Nf6+ {[%clk 0:02:22]} 27... Kf8 {[%clk
0:01:34.9]} 28. Rxd1 {[%clk 0:02:22.9]} 28... Ne6 {[%clk 0:01:32.3]} 29. Rd7
{[%clk 0:02:19.5]} 29... Nf4 {[%clk 0:01:28.2]} 30. Bd5 {[%clk 0:02:18.7]} 30...
Nxd5 {[%clk 0:01:16.7]} 31. Nxd5 {[%clk 0:02:19.6]} 31... b5 {[%clk 0:01:15.7]}
32. Rd8+ {[%clk 0:02:19.1]} 32... Kg7 {[%clk 0:01:14.6]} 33. Nf6 {[%clk
0:02:20]} 1-0

[Event "Late-Titled-Tuesday-Blitz-September-12-2023"]
[Site "Chess.com"]
[Date "2023.09.12"]
[Round "4"]
[White "GothamChess"]
[Black "dennisodessa"]
[Result "1-0"]
[WhiteElo "2731"]
[BlackElo "2526"]
[TimeControl "180+1"]
[EndTime "14:34:05 PDT"]
[Termination "GothamChess won by resignation"]

1. e4 {[%clk 0:02:21.6]} 1... e6 {[%clk 0:02:57.3]} 2. b3 {[%clk 0:02:20.8]}
2... d5 {[%clk 0:02:55.7]} 3. Bb2 {[%clk 0:02:21.2]} 3... dxe4 {[%clk
0:02:56.3]} 4. Nc3 {[%clk 0:02:21.2]} 4... Nf6 {[%clk 0:02:53.4]} 5. Qe2 {[%clk
0:02:21.4]} 5... Nbd7 {[%clk 0:02:52.2]} 6. O-O-O {[%clk 0:02:19.7]} 6... b6
{[%clk 0:02:47.5]} 7. g4 {[%clk 0:02:19.5]} 7... h6 {[%clk 0:02:42.4]} 8. Bg2
{[%clk 0:02:19.1]} 8... Bb7 {[%clk 0:02:42.3]} 9. h4 {[%clk 0:02:19.4]} 9... Be7
{[%clk 0:02:33]} 10. g5 {[%clk 0:02:14.3]} 10... hxg5 {[%clk 0:02:33.9]} 11.
hxg5 {[%clk 0:02:14.3]} 11... Rxh1 {[%clk 0:02:34.8]} 12. Bxh1 {[%clk
0:02:14.9]} 12... Nd5 {[%clk 0:02:34.6]} 13. g6 {[%clk 0:02:04.2]} 13... f5
{[%clk 0:02:32.3]} 14. f3 {[%clk 0:01:59.3]} 14... N7f6 {[%clk 0:02:23.1]} 15.
fxe4 {[%clk 0:01:57.7]} 15... Nxc3 {[%clk 0:02:22.3]} 16. dxc3 {[%clk
0:01:54.3]} 16... Qc8 {[%clk 0:02:17.1]} 17. Qh2 {[%clk 0:01:34.4]} 17... fxe4
{[%clk 0:01:54.6]} 18. Qh8+ {[%clk 0:01:23.7]} 18... Bf8 {[%clk 0:01:54.2]} 19.
c4 {[%clk 0:01:15.7]} 19... Ke7 {[%clk 0:01:43.6]} 20. Qh4 {[%clk 0:01:05.6]}
20... Qe8 {[%clk 0:01:40.5]} 21. Bxf6+ {[%clk 0:01:03.2]} 1-0

[Event "Late-Titled-Tuesday-Blitz-September-12-2023"]
[Site "Chess.com"]
[Date "2023.09.12"]
[Round "4"]
[White "Vladimir_Zakhartsov"]
[Black "FairChess_on_YouTube"]
[Result "0-1"]
[WhiteElo "2876"]
[BlackElo "3063"]
[TimeControl "180+1"]
[EndTime "14:34:11 PDT"]
[Termination "FairChess_on_YouTube won by resignation"]

1. d4 {[%clk 0:02:56.5]} 1... Nf6 {[%clk 0:02:59.5]} 2. c4 {[%clk 0:02:56.1]}
2... e6 {[%clk 0:03:00.1]} 3. Nf3 {[%clk 0:02:54.6]} 3... b6 {[%clk 0:03:00.5]}
4. a3 {[%clk 0:02:54.2]} 4... Bb7 {[%clk 0:02:59.2]} 5. Nc3 {[%clk 0:02:54.1]}
5... Ne4 {[%clk 0:02:56.5]} 6. Nxe4 {[%clk 0:02:52.4]} 6... Bxe4 {[%clk
0:02:57.4]} 7. Bf4 {[%clk 0:02:45.1]} 7... d6 {[%clk 0:02:48.8]} 8. e3 {[%clk
0:02:38.4]} 8... Nd7 {[%clk 0:02:48.8]} 9. Bd3 {[%clk 0:02:33.3]} 9... Bb7
{[%clk 0:02:48.8]} 10. e4 {[%clk 0:02:18.1]} 10... g6 {[%clk 0:02:47.8]} 11. O-O
{[%clk 0:02:17.4]} 11... Bg7 {[%clk 0:02:48]} 12. Rc1 {[%clk 0:02:16.3]} 12...
O-O {[%clk 0:02:47.3]} 13. Re1 {[%clk 0:02:14.8]} 13... e5 {[%clk 0:02:46.3]}
14. Be3 {[%clk 0:02:11.5]} 14... a5 {[%clk 0:02:34.4]} 15. b4 {[%clk 0:01:57.2]}
15... axb4 {[%clk 0:02:32.7]} 16. axb4 {[%clk 0:01:58.1]} 16... exd4 {[%clk
0:02:31.8]} 17. Bxd4 {[%clk 0:01:55.8]} 17... Ra3 {[%clk 0:02:24.7]} 18. Qd2
{[%clk 0:01:38.9]} 18... Ne5 {[%clk 0:02:19.3]} 19. Nxe5 {[%clk 0:01:25.5]}
19... dxe5 {[%clk 0:02:19.1]} 20. Bc3 {[%clk 0:01:25.7]} 20... Qd7 {[%clk
0:02:10.2]} 21. Bf1 {[%clk 0:01:22.9]} 21... Rd8 {[%clk 0:02:04.1]} 22. Qb2
{[%clk 0:01:21.8]} 22... Qa4 {[%clk 0:01:55]} 23. Ra1 {[%clk 0:01:15.3]} 23...
Ra8 {[%clk 0:01:54.9]} 24. Rxa3 {[%clk 0:01:09.3]} 24... Qxa3 {[%clk 0:01:55.8]}
25. Bxe5 {[%clk 0:00:58.4]} 25... Qxb2 {[%clk 0:01:54.4]} 0-1

[Event "Late-Titled-Tuesday-Blitz-September-12-2023"]
[Site "Chess.com"]
[Date "2023.09.12"]
[Round "4"]
[White "Eloist"]
[Black "Rinqed222"]
[Result "1-0"]
[WhiteElo "2496"]
[BlackElo "2244"]
[TimeControl "180+1"]
[EndTime "14:34:16 PDT"]
[Termination "Eloist won by resignation"]

1. e4 {[%clk 0:03:00.9]} 1... e6 {[%clk 0:02:59.3]} 2. d4 {[%clk 0:03:00.7]}
2... d5 {[%clk 0:02:59.1]} 3. Nd2 {[%clk 0:03:00.8]} 3... c5 {[%clk 0:02:54.9]}
4. Ngf3 {[%clk 0:02:58.1]} 4... cxd4 {[%clk 0:02:46.4]} 5. Nxd4 {[%clk
0:02:55.4]} 5... Nc6 {[%clk 0:02:46.1]} 6. Bb5 {[%clk 0:02:54.4]} 6... Bd7
{[%clk 0:02:46.2]} 7. Nxc6 {[%clk 0:02:54.4]} 7... bxc6 {[%clk 0:02:46.4]} 8.
Bd3 {[%clk 0:02:54.4]} 8... Bd6 {[%clk 0:02:33.1]} 9. Qe2 {[%clk 0:02:53.2]}
9... Qc7 {[%clk 0:02:24.1]} 10. Nf3 {[%clk 0:02:52.7]} 10... dxe4 {[%clk
0:02:05]} 11. Qxe4 {[%clk 0:02:52]} 11... Nf6 {[%clk 0:02:04.9]} 12. Qh4 {[%clk
0:02:51.6]} 12... O-O-O {[%clk 0:01:25.6]} 13. O-O {[%clk 0:02:49.1]} 13... Kb8
{[%clk 0:01:19.9]} 14. Bg5 {[%clk 0:02:43.6]} 14... Be7 {[%clk 0:00:56.8]} 15.
Bf4 {[%clk 0:02:42.3]} 15... Bd6 {[%clk 0:00:56.2]} 16. Bxd6 {[%clk 0:02:40.7]}
16... Qxd6 {[%clk 0:00:56]} 17. Rfe1 {[%clk 0:02:38.5]} 17... Nd5 {[%clk
0:00:29.6]} 18. Ne5 {[%clk 0:02:38]} 18... Be8 {[%clk 0:00:22.4]} 19. c4 {[%clk
0:02:26.3]} 19... Nb4 {[%clk 0:00:13.7]} 20. Rad1 {[%clk 0:02:26]} 20... Qc5
{[%clk 0:00:12]} 21. Qxd8+ {[%clk 0:02:18]} 1-0

[Event "Late-Titled-Tuesday-Blitz-September-12-2023"]
[Site "Chess.com"]
[Date "2023.09.12"]
[Round "4"]
[White "jup1978"]
[Black "KVAIDAN"]
[Result "0-1"]
[WhiteElo "2481"]
[BlackElo "2269"]
[TimeControl "180+1"]
[EndTime "14:34:20 PDT"]
[Termination "KVAIDAN won by resignation"]

1. d4 {[%clk 0:03:00.9]} 1... e6 {[%clk 0:03:00]} 2. c4 {[%clk 0:02:59.6]} 2...
f5 {[%clk 0:03:00.4]} 3. g3 {[%clk 0:02:56.5]} 3... Nf6 {[%clk 0:03:00.7]} 4.
Bg2 {[%clk 0:02:57]} 4... Be7 {[%clk 0:03:00.8]} 5. Nf3 {[%clk 0:02:57.6]} 5...
O-O {[%clk 0:03:01.3]} 6. O-O {[%clk 0:02:58.2]} 6... d6 {[%clk 0:03:02]} 7. Nc3
{[%clk 0:02:55.8]} 7... a5 {[%clk 0:03:02.5]} 8. Re1 {[%clk 0:02:53.4]} 8... Ne4
{[%clk 0:03:02.5]} 9. Qc2 {[%clk 0:02:51.5]} 9... Nxc3 {[%clk 0:03:02.8]} 10.
Qxc3 {[%clk 0:02:51.2]} 10... Nc6 {[%clk 0:03:02.6]} 11. b3 {[%clk 0:02:44.2]}
11... e5 {[%clk 0:02:57]} 12. dxe5 {[%clk 0:02:42.8]} 12... dxe5 {[%clk
0:02:56.9]} 13. a3 {[%clk 0:02:17.7]} 13... e4 {[%clk 0:02:55.5]} 14. Qc2 {[%clk
0:01:45.2]} 14... exf3 {[%clk 0:02:53.4]} 15. exf3 {[%clk 0:01:44.4]} 15... Bf6
{[%clk 0:02:53]} 16. Ra2 {[%clk 0:01:43]} 16... Nd4 {[%clk 0:02:52.8]} 17. Qd3
{[%clk 0:01:38.5]} 17... c5 {[%clk 0:02:51]} 18. f4 {[%clk 0:01:36]} 18... Rb8
{[%clk 0:02:46]} 19. a4 {[%clk 0:01:33.5]} 19... Bd7 {[%clk 0:02:44.9]} 20. Bd5+
{[%clk 0:01:30.4]} 20... Kh8 {[%clk 0:02:44.5]} 21. Be3 {[%clk 0:01:26.3]} 21...
Bc6 {[%clk 0:02:44.5]} 22. Bxd4 {[%clk 0:01:25.7]} 22... Bxd4 {[%clk 0:02:44.5]}
23. Be6 {[%clk 0:01:21.6]} 23... Be4 {[%clk 0:02:43.2]} 24. Rxe4 {[%clk
0:01:19.6]} 24... Bxf2+ {[%clk 0:02:37.8]} 25. Kxf2 {[%clk 0:01:18.1]} 25...
Qxd3 {[%clk 0:02:38.2]} 26. Re3 {[%clk 0:01:16.5]} 26... Qd4 {[%clk 0:02:37]}
27. Kf3 {[%clk 0:01:13.6]} 27... Rbe8 {[%clk 0:02:36.7]} 28. Rae2 {[%clk
0:01:13.4]} 28... h6 {[%clk 0:02:33.3]} 29. h4 {[%clk 0:01:12.3]} 29... Rf6
{[%clk 0:02:28.3]} 30. Bd5 {[%clk 0:01:08.5]} 30... Rxe3+ {[%clk 0:02:25.7]} 31.
Rxe3 {[%clk 0:01:09.4]} 31... Rf8 {[%clk 0:02:25.8]} 32. h5 {[%clk 0:01:09.5]}
32... Qd1+ {[%clk 0:02:25.5]} 33. Kf2 {[%clk 0:01:08.1]} 33... Qxh5 {[%clk
0:02:25.6]} 34. Bxb7 {[%clk 0:01:07.4]} 34... Qh2+ {[%clk 0:02:24.9]} 35. Kf1
{[%clk 0:01:04.6]} 35... Rd8 {[%clk 0:02:23.4]} 36. Bd5 {[%clk 0:01:02.7]} 36...
Qd2 {[%clk 0:02:23.5]} 37. Re5 {[%clk 0:01:01.2]} 37... Qd3+ {[%clk 0:02:18.2]}
38. Kg2 {[%clk 0:00:58.9]} 38... Qxb3 {[%clk 0:02:17.8]} 39. Rxf5 {[%clk
0:00:59]} 39... Qc2+ {[%clk 0:02:17.8]} 0-1

[Event "Late-Titled-Tuesday-Blitz-September-12-2023"]
[Site "Chess.com"]
[Date "2023.09.12"]
[Round "4"]
[White "Chessdreamer2020"]
[Black "picturesquecheck"]
[Result "1-0"]
[WhiteElo "2514"]
[BlackElo "2332"]
[TimeControl "180+1"]
[EndTime "14:34:27 PDT"]
[Termination "Chessdreamer2020 won by resignation"]

1. e4 {[%clk 0:02:59.3]} 1... c5 {[%clk 0:02:57.7]} 2. Nf3 {[%clk 0:02:58.8]}
2... Nc6 {[%clk 0:02:58.4]} 3. Bb5 {[%clk 0:02:57.4]} 3... e6 {[%clk 0:02:58.3]}
4. b3 {[%clk 0:02:57.1]} 4... Nge7 {[%clk 0:02:58.4]} 5. Bb2 {[%clk 0:02:57.6]}
5... a6 {[%clk 0:02:58.7]} 6. Bxc6 {[%clk 0:02:58]} 6... Nxc6 {[%clk 0:02:58.5]}
7. O-O {[%clk 0:02:58.9]} 7... d5 {[%clk 0:02:55.4]} 8. exd5 {[%clk 0:02:58.7]}
8... Qxd5 {[%clk 0:02:55.6]} 9. Nc3 {[%clk 0:02:59]} 9... Qd8 {[%clk 0:02:55]}
10. Ne4 {[%clk 0:02:58.4]} 10... b5 {[%clk 0:02:40.8]} 11. Re1 {[%clk
0:02:57.5]} 11... Bb7 {[%clk 0:02:39.8]} 12. a4 {[%clk 0:02:53.6]} 12... Nd4
{[%clk 0:02:35.9]} 13. Nxd4 {[%clk 0:02:48.3]} 13... cxd4 {[%clk 0:02:28.2]} 14.
Qh5 {[%clk 0:02:34]} 14... bxa4 {[%clk 0:02:18.8]} 15. Rxa4 {[%clk 0:02:33.7]}
15... d3 {[%clk 0:02:13.5]} 16. Rd4 {[%clk 0:02:23.8]} 16... Qc7 {[%clk
0:02:05.6]} 17. c4 {[%clk 0:02:12.8]} 17... Rd8 {[%clk 0:01:39.1]} 18. Rxd8+
{[%clk 0:02:04.3]} 18... Qxd8 {[%clk 0:01:40]} 19. Ng5 {[%clk 0:02:04.6]} 19...
g6 {[%clk 0:01:25.7]} 20. Qg4 {[%clk 0:01:49.3]} 20... Be7 {[%clk 0:00:59.7]}
21. Nxe6 {[%clk 0:01:39.2]} 21... fxe6 {[%clk 0:00:56.5]} 22. Bxh8 {[%clk
0:01:38.9]} 22... Qa5 {[%clk 0:00:50.1]} 1-0